[Event "57th Biel Festival ATO 2024"]
[Site "Biel"]
[Date "2024.07.22"]
[Round "6.5"]
[White "Akhmediyar, Yernur"]
[Black "Kulikov, Mikhail L"]
[Result "0-1"]
[ECO "A27"]
[WhiteElo "1751"]
[BlackElo "1954"]
[Annotator "ChessBase"]
[PlyCount "130"]
[EventDate "2024.07.03"]
[EventType "swiss"]
[EventCountry "SUI"]
[SourceTitle "playchess.com"]
[Source "ChessBase"]
[SourceQuality "1"]
[TimeControl "40/5400+30:1800+30"]

1. c4 {[%emt 0:00:12]} e5 {[%emt 0:00:13]} 2. Nc3 {[%emt 0:00:14]} Nc6 {[%emt 0:00:13]} 3. Nf3 {[%emt 0:00:22]} g6 {[%emt 0:00:44]} 4. d4 {[%emt 0:13:59]} exd4 {[%emt 0:04:29]} 5. Nxd4 {[%emt 0:00:06]} Bg7 {[%emt 0:01:37]} 6. e3 {[%emt 0:05:31]} Nge7 {[%emt 0:02:36]} 7. Be2 {[%emt 0:05:48]} d6 {[%emt 0:00:32]} 8. O-O {[%emt 0:02:32]} O-O {[%emt 0:00:40]} 9. Nxc6 {[%emt 0:21:03]} Nxc6 {[%emt 0:00:25]} 10. Qd2 {[%emt 0:00:28]} Be6 {[%emt 0:02:42]} 11. b3 {[%emt 0:04:41]} Ne5 {[%emt 0:06:23]} 12. Bb2 {[%emt 0:00:41]} a6 {[%emt 0:06:05]} 13. h3 {[%emt 0:06:28]} Qd7 {[%emt 0:03:43]} 14. f4 {[%emt 0:04:03]} Nc6 {[%emt 0:02:47]} 15. Bf3 {[%emt 0:01:19]} Rab8 {[%emt 0:01:33]} 16. Ne4 {[%emt 0:11:02]} f6 {[%emt 0:04:20]} 17. Rac1 {[%emt 0:00:59]} Rbe8 {[%emt 0:01:58]} 18. Rfd1 {[%emt 0:00:39]} Kh8 {[%emt 0:20:04]} 19. Nc5 {[%emt 0:12:25]} Qc8 {[%emt 0:00:19]} 20. Nxa6 {[%emt 0:00:24]} Ne7 {[%emt 0:03:52]} 21. Nb4 {[%emt 0:00:28]} Nf5 {[%emt 0:00:57]} 22. Qf2 {[%emt 0:01:55]} Qa8 {[%emt 0:00:59]} 23. g4 {[%emt 0:01:25]} Ne7 {[%emt 0:01:20]} 24. a4 {[%emt 0:00:47]} Qa5 {[%emt 0:01:06]} 25. Bc3 {[%emt 0:00:36]} Qb6 {[%emt 0:03:13]} 26. Rb1 {[%emt 0:01:34]} f5 {[%emt 0:01:10]} 27. Bxg7+ {[%emt 0:01:59]} Kxg7 {[%emt 0:00:02]} 28. Nc2 {[%emt 0:00:24]} fxg4 {[%emt 0:01:20]} 29. hxg4 {[%emt 0:00:03]} Qc5 {[%emt 0:02:56]} 30. Rbc1 {[%emt 0:01:21]} Ng8 {[%emt 0:05:21]} 31. Kg2 {[%emt 0:01:33]} Bd7 {[%emt 0:03:21]} 32. Qd2 {[%emt 0:00:35]} Nf6 {[%emt 0:02:02]} 33. g5 {[%emt 0:00:44]} Ne4 {[%emt 0:01:33]} 34. Qd4+ {[%emt 0:00:18]} Qxd4 {[%emt 0:00:16]} 35. Rxd4 {[%emt 0:00:19]} Bc6 {[%emt 0:00:15]} 36. Nb4 {[%emt 0:00:50]} Nc5 {[%emt 0:04:25]} 37. Rc3 {[%emt 0:00:27]} Bxf3+ {[%emt 0:01:27]} 38. Kxf3 {[%emt 0:00:02]} Ne6 {[%emt 0:00:23]} 39. Rd5 {[%emt 0:00:32]} Re7 {[%emt 0:02:55]} 40. Kg2 {[%emt 0:01:01]} Nc5 {[%emt 0:00:59]} 41. Nc2 {[%emt 0:30:22]} Rfe8 {[%emt 0:33:14]} 42. a5 {[%emt 0:00:00]} Ne4 {[%emt 0:00:00]} 43. Rcd3 {[%emt 0:00:00]} Nc5 {[%emt 0:00:00]} 44. Rc3 {[%emt 0:00:00]} c6 {[%emt 0:00:00]} 45. Rd1 {[%emt 0:00:00]} Ne4 {[%emt 0:00:00]} 46. Rcd3 {[%emt 0:00:00]} c5 {[%emt 0:00:00]} 47. Ra1 {[%emt 0:00:00]} h6 {[%emt 0:00:00]} 48. gxh6+ {[%emt 0:00:00]} Kxh6 {[%emt 0:00:00]} 49. a6 {[%emt 0:00:00]} bxa6 {[%emt 0:00:00]} 50. Rxa6 {[%emt 0:00:00]} g5 {[%emt 0:00:00]} 51. fxg5+ {[%emt 0:00:00]} Kxg5 {[%emt 0:00:00]} 52. Ne1 {[%emt 0:00:00]} Rg8 {[%emt 0:00:00]} 53. Kf3 {[%emt 0:02:18]} Rf8+ {[%emt 0:00:00]} 54. Ke2 {[%emt 0:00:27]} Rf2+ {[%emt 0:00:00]} 55. Kd1 {[%emt 0:00:02]} Rh7 {[%emt 0:00:00]} 56. Ra8 {[%emt 0:00:49]} Rhh2 {[%emt 0:00:02]} 57. Rd5+ {[%emt 0:00:48]} Kg6 {[%emt 0:01:16]} 58. Rd3 {[%emt 0:02:03]} Rf1 {[%emt 0:02:10]} 59. Re8 {[%emt 0:02:44]} Nf2+ {[%emt 0:02:27]} 60. Ke2 {[%emt 0:00:30]} Rxe1+ {[%emt 0:00:59]} 61. Kxe1 {[%emt 0:00:00]} Nxd3+ {[%emt 0:00:08]} 62. Kd1 {[%emt 0:00:20]} Kf5 {[%emt 0:01:15]} 63. e4+ {[%emt 0:00:26]} Kf4 {[%emt 0:00:17]} 64. Re6 {[%emt 0:01:00]} Ke3 {[%emt 0:00:55]} 65. Rxd6 {[%emt 0:00:40]} Rd2# {[%emt 0:00:31]} 0-1

[Event "57th Biel Festival ATO 2024"]
[Site "Biel"]
[Date "2024.07.22"]
[Round "6.6"]
[White "Jud, Marc"]
[Black "Kuenzi, Anton"]
[Result "1-0"]
[ECO "D79"]
[WhiteElo "1925"]
[BlackElo "1862"]
[Annotator "RC"]
[PlyCount "57"]
[EventDate "2024.07.03"]
[EventType "swiss"]
[EventCountry "SUI"]
[SourceTitle "playchess.com"]
[Source "ChessBase"]
[SourceQuality "1"]
[TimeControl "40/5400+30:1800+30"]

1. Nf3 {[%emt 0:00:23]} Nf6 {[%emt 0:00:33]} 2. d4 {[%emt 0:00:12]} g6 {[%emt 0:00:17]} 3. c4 {[%emt 0:00:12]} Bg7 {[%emt 0:00:05]} 4. g3 {[%emt 0:00:26]} O-O {[%emt 0:00:22]} 5. Bg2 {[%emt 0:00:19]} c6 {[%emt 0:00:22]} 6. Nc3 {[%emt 0:00:38]} d5 {[%emt 0:00:14]} 7. cxd5 {[%emt 0:00:13]} cxd5 {[%emt 0:01:41]} 8. O-O {[%emt 0:00:41]} Nc6 {[%emt 0:00:54]} 9. Ne5 {[%emt 0:00:56]} e6 {[%emt 0:06:49]} 10. Nxc6 {[%emt 0:02:01]} bxc6 {[%emt 0:00:09]} 11. b3 {[%emt 0:00:29]} c5 {[%emt 0:07:08]} 12. e3 {[%emt 0:02:13]} cxd4 {[%emt 0:25:24]} 13. exd4 {[%emt 0:00:21]} Ba6 {[%emt 0:00:36]} 14. Re1 {[%emt 0:01:49]} Rc8 {[%emt 0:08:51]} 15. Na4 {[%emt 0:04:07]} Ne4 {[%emt 0:07:49]} 16. Ba3 {[%emt 0:05:56]} Re8 {[%emt 0:03:43]} 17. Nc5 {[%emt 0:01:19]} Nc3 {[%emt 0:09:12]} 18. Qd2 {[%emt 0:03:41]} Ne2+ {[%emt 0:04:07]} 19. Kh1 {[%emt 0:02:53]} Nxd4 {[%emt 0:06:15]} 20. Rac1 {[%emt 0:07:56]} Qb6 {[%emt 0:02:58]} 21. Na4 {[%emt 0:05:13]} Qb8 {[%emt 0:02:18]} 22. Bb2 {[%emt 0:02:38]} Nf5 {[%emt 0:01:24]} 23. Bxg7 {[%emt 0:02:21]} Nxg7 {[%emt 0:00:23]} 24. Nc5 {[%emt 0:01:40]} Qb5 {[%emt 0:01:15]} 25. Bf1 {[%emt 0:02:48]} Qxf1+ {[%emt 0:01:36]} 26. Rxf1 {[%emt 0:00:24]} Bxf1 {[%emt 0:00:01]} 27. Nd7 {[%emt 0:01:34]} Red8 {[%emt 0:03:17]} 28. Nf6+ {[%emt 0:01:03]} Kf8 {[%emt 0:00:17]} 29. Qb4+ {[%emt 0:00:41]} 1-0

[Event "57th Biel Festival ATO 2024"]
[Site "Biel"]
[Date "2024.07.22"]
[Round "6.7"]
[White "Titov, Dmitrii"]
[Black "Nergard, Ole-Kristian"]
[Result "1-0"]
[ECO "D00"]
[WhiteElo "1899"]
[BlackElo "1830"]
[Annotator "NA"]
[PlyCount "153"]
[EventDate "2024.07.03"]
[EventType "swiss"]
[EventCountry "SUI"]
[SourceTitle "playchess.com"]
[Source "ChessBase"]
[SourceQuality "1"]
[TimeControl "40/5400+30:1800+30"]

1. d4 {[%emt 0:00:02]} Nf6 {[%emt 0:04:05]} 2. Bf4 {[%emt 0:00:15]} d5 {[%emt 0:00:57]} 3. e3 {[%emt 0:00:31]} c5 {[%emt 0:01:36]} 4. c3 {[%emt 0:02:38]} Nbd7 {[%emt 0:11:35]} 5. Nd2 {[%emt 0:02:33]} g6 {[%emt 0:00:46]} 6. Be2 {[%emt 0:04:52]} Bg7 {[%emt 0:00:22]} 7. h4 {[%emt 0:01:05]} h5 {[%emt 0:03:07]} 8. Ngf3 {[%emt 0:00:34]} Ng4 {[%emt 0:02:48]} 9. Bg3 {[%emt 0:10:13]} e5 {[%emt 0:04:04]} 10. dxe5 {[%emt 0:02:01]} Ndxe5 {[%emt 0:03:06]} 11. Nxe5 {[%emt 0:04:33]} Bxe5 {[%emt 0:04:06]} 12. Bb5+ {[%emt 0:05:06]} Bd7 {[%emt 0:04:43]} 13. Bxd7+ {[%emt 0:01:12]} Qxd7 {[%emt 0:00:26]} 14. Bxe5 {[%emt 0:08:13]} Nxe5 {[%emt 0:00:17]} 15. Nf3 {[%emt 0:00:28]} Ng4 {[%emt 0:07:21]} 16. Qc2 {[%emt 0:03:29]} O-O {[%emt 0:04:25]} 17. O-O {[%emt 0:06:08]} Qe6 {[%emt 0:07:05]} 18. a4 {[%emt 0:06:18]} Rfd8 {[%emt 0:03:10]} 19. a5 {[%emt 0:03:33]} Ne5 {[%emt 0:08:23]} 20. Nxe5 {[%emt 0:01:53]} Qxe5 {[%emt 0:00:02]} 21. Ra4 {[%emt 0:06:54]} Rd7 {[%emt 0:04:49]} 22. Qb3 {[%emt 0:10:40]} Rad8 {[%emt 0:02:09]} 23. Rd1 {[%emt 0:01:32]} c4 {[%emt 0:07:05]} 24. Qc2 {[%emt 0:00:35]} Kg7 {[%emt 0:02:02]} 25. Rd4 {[%emt 0:00:19]} Rd6 {[%emt 0:00:49]} 26. Ra1 {[%emt 0:01:32]} a6 {[%emt 0:02:32]} 27. Rad1 {[%emt 0:02:08]} Qe6 {[%emt 0:02:52]} 28. Qd2 {[%emt 0:00:49]} R8d7 {[%emt 0:00:10]} 29. e4 {[%emt 0:00:53]} Qf6 {[%emt 0:01:47]} 30. Qg5 {[%emt 0:03:06]} Qe6 {[%emt 0:04:04]} 31. exd5 {[%emt 0:02:20]} Qe2 {[%emt 0:01:42]} 32. Qd2 {[%emt 0:00:32]} Qxd2 {[%emt 0:02:10]} 33. R1xd2 {[%emt 0:00:20]} Kf6 {[%emt 0:00:25]} 34. Kf1 {[%emt 0:02:33]} Ke5 {[%emt 0:01:08]} 35. Rxc4 {[%emt 0:02:27]} Rxd5 {[%emt 0:00:06]} 36. Rxd5+ {[%emt 0:00:10]} Rxd5 {[%emt 0:00:11]} 37. b4 {[%emt 0:00:21]} Rd7 {[%emt 0:01:03]} 38. Ke2 {[%emt 0:00:27]} f6 {[%emt 0:00:54]} 39. Ke3 {[%emt 0:01:03]} Rd5 {[%emt 0:01:01]} 40. Re4+ {[%emt 0:03:28]} Kf5 {[%emt 0:00:26]} 41. Re7 {[%emt 0:31:17]} Rb5 {[%emt 0:01:54]} 42. f3 {[%emt 0:00:00]} g5 {[%emt 0:07:10]} 43. g3 {[%emt 0:00:00]} b6 {[%emt 0:03:14]} 44. axb6 {[%emt 0:00:00]} Rxb6 {[%emt 0:00:03]} 45. Re4 {[%emt 0:00:00]} Kg6 {[%emt 0:06:04]} 46. Kd4 {[%emt 0:00:00]} f5 {[%emt 0:02:25]} 47. Re3 {[%emt 0:00:00]} Kf6 {[%emt 0:06:01]} 48. hxg5+ {[%emt 0:00:00]} Kxg5 {[%emt 0:00:04]} 49. Re1 {[%emt 0:01:40]} Rd6+ {[%emt 0:03:15]} 50. Kc4 {[%emt 0:01:02]} Rd2 {[%emt 0:02:47]} 51. Re8 {[%emt 0:01:00]} Rd6 {[%emt 0:00:37]} 52. Rg8+ {[%emt 0:00:33]} Kf6 {[%emt 0:01:04]} 53. f4 {[%emt 0:01:01]} Re6 {[%emt 0:01:05]} 54. Rg5 {[%emt 0:01:11]} h4 {[%emt 0:00:11]} 55. gxh4 {[%emt 0:00:29]} Re4+ {[%emt 0:00:13]} 56. Kd3 {[%emt 0:01:38]} Rxf4 {[%emt 0:00:07]} 57. Rg8 {[%emt 0:00:39]} Rxh4 {[%emt 0:01:26]} 58. Ra8 {[%emt 0:00:15]} Rh3+ {[%emt 0:00:22]} 59. Kd4 {[%emt 0:00:19]} Rh4+ {[%emt 0:00:27]} 60. Kd5 {[%emt 0:00:12]} f4 {[%emt 0:00:44]} 61. Rxa6+ {[%emt 0:00:06]} Kf5 {[%emt 0:00:05]} 62. Ra8 {[%emt 0:00:25]} f3 {[%emt 0:00:55]} 63. Rf8+ {[%emt 0:00:20]} Kg4 {[%emt 0:00:09]} 64. Ke4 {[%emt 0:01:04]} Kg5+ {[%emt 0:01:43]} 65. Kxf3 {[%emt 0:00:57]} Rc4 {[%emt 0:00:07]} 66. Ke3 {[%emt 0:00:19]} Rxc3+ {[%emt 0:00:05]} 67. Kd4 {[%emt 0:00:09]} Rc6 {[%emt 0:01:19]} 68. b5 {[%emt 0:00:16]} Rc1 {[%emt 0:00:29]} 69. b6 {[%emt 0:00:20]} Rb1 {[%emt 0:00:26]} 70. Kc5 {[%emt 0:00:07]} Rc1+ {[%emt 0:00:13]} 71. Kd6 {[%emt 0:00:18]} Rd1+ {[%emt 0:00:40]} 72. Kc7 {[%emt 0:00:08]} Rc1+ {[%emt 0:00:13]} 73. Kb8 {[%emt 0:00:08]} Kg6 {[%emt 0:00:50]} 74. b7 {[%emt 0:00:21]} Rc2 {[%emt 0:00:38]} 75. Rc8 {[%emt 0:00:35]} Rf2 {[%emt 0:00:33]} 76. Kc7 {[%emt 0:00:21]} Rf7+ {[%emt 0:00:04]} 77. Kc6 {[%emt 0:00:11]} 1-0

[Event "57th Biel Festival ATO 2024"]
[Site "Biel"]
[Date "2024.07.22"]
[Round "6.8"]
[White "Leuenberger, Urs"]
[Black "King, Alexander"]
[Result "0-1"]
[ECO "D35"]
[WhiteElo "1903"]
[BlackElo "1935"]
[Annotator "ChessBase"]
[PlyCount "78"]
[EventDate "2024.07.03"]
[EventType "swiss"]
[EventCountry "SUI"]
[SourceTitle "playchess.com"]
[Source "ChessBase"]
[SourceQuality "1"]
[TimeControl "40/5400+30:1800+30"]

1. d4 {[%emt 0:00:13]} d5 {[%emt 0:00:56]} 2. c4 {[%emt 0:00:23]} e6 {[%emt 0:01:31]} 3. Nc3 {[%emt 0:00:37]} Nf6 {[%emt 0:00:29]} 4. Nf3 {[%emt 0:00:35]} c6 {[%emt 0:02:43]} 5. cxd5 {[%emt 0:01:32]} exd5 {[%emt 0:00:53]} 6. Qc2 {[%emt 0:01:18]} Nbd7 {[%emt 0:01:39]} 7. Bf4 {[%emt 0:02:23]} Be7 {[%emt 0:01:45]} 8. h3 {[%emt 0:01:09]} O-O {[%emt 0:02:07]} 9. e3 {[%emt 0:00:37]} Re8 {[%emt 0:01:08]} 10. Bd3 {[%emt 0:00:15]} Nf8 {[%emt 0:01:27]} 11. O-O {[%emt 0:00:27]} Ne6 {[%emt 0:02:18]} 12. Bh2 {[%emt 0:05:44]} g6 {[%emt 0:01:44]} 13. a3 {[%emt 0:02:41]} Ng7 {[%emt 0:03:47]} 14. b4 {[%emt 0:02:41]} a6 {[%emt 0:04:19]} 15. Rab1 {[%emt 0:03:40]} Bf5 {[%emt 0:06:21]} 16. Bxf5 {[%emt 0:07:48]} Nxf5 {[%emt 0:00:28]} 17. a4 {[%emt 0:03:14]} b5 {[%emt 0:06:40]} 18. Ne5 {[%emt 0:00:57]} Qb6 {[%emt 0:01:59]} 19. Nd3 {[%emt 0:05:50]} Nd6 {[%emt 0:07:12]} 20. axb5 {[%emt 0:02:09]} axb5 {[%emt 0:00:58]} 21. Bxd6 {[%emt 0:00:50]} Bxd6 {[%emt 0:00:03]} 22. Ra1 {[%emt 0:00:19]} Qb7 {[%emt 0:05:14]} 23. Rfc1 {[%emt 0:01:56]} Nd7 {[%emt 0:03:23]} 24. Ne2 {[%emt 0:07:39]} Rxa1 {[%emt 0:07:33]} 25. Rxa1 {[%emt 0:00:10]} Ra8 {[%emt 0:00:07]} 26. Rc1 {[%emt 0:02:01]} Ra6 {[%emt 0:03:18]} 27. g3 {[%emt 0:01:28]} Qc8 {[%emt 0:03:57]} 28. Kg2 {[%emt 0:01:12]} Qf8 {[%emt 0:02:25]} 29. Qc3 {[%emt 0:06:37]} Qe8 {[%emt 0:03:34]} 30. Qd2 {[%emt 0:06:41]} Nb6 {[%emt 0:01:58]} 31. Nc5 {[%emt 0:00:29]} Ra7 {[%emt 0:01:52]} 32. Qc3 {[%emt 0:07:17]} Qa8 {[%emt 0:07:19]} 33. Nb3 {[%emt 0:01:57]} Nc4 {[%emt 0:00:45]} 34. Nc5 {[%emt 0:03:25]} Ra3 {[%emt 0:02:09]} 35. Qe1 {[%emt 0:01:33]} Bxc5 {[%emt 0:05:16]} 36. dxc5 {[%emt 0:00:23]} Qe8 {[%emt 0:00:45]} 37. Nd4 {[%emt 0:01:05]} Qe4+ {[%emt 0:02:51]} 38. Nf3 {[%emt 0:05:31]} Nxe3+ {[%emt 0:02:50]} 39. fxe3 {[%emt 0:00:17]} Ra2+ {[%emt 0:00:02]} 0-1

[Event "57th Biel Festival ATO 2024"]
[Site "Biel"]
[Date "2024.07.22"]
[Round "6.9"]
[White "Wenger, Arejou"]
[Black "Conrad, Vincent"]
[Result "1-0"]
[ECO "C04"]
[WhiteElo "1875"]
[BlackElo "1931"]
[Annotator "ChessBase"]
[PlyCount "33"]
[EventDate "2024.07.03"]
[EventType "swiss"]
[EventCountry "SUI"]
[SourceTitle "playchess.com"]
[Source "ChessBase"]
[SourceQuality "1"]
[TimeControl "40/5400+30:1800+30"]

1. e4 {[%emt 0:00:06]} e6 {[%emt 0:00:32]} 2. d4 {[%emt 0:00:04]} d5 {[%emt 0:00:09]} 3. Nd2 {[%emt 0:00:07]} Nc6 {[%emt 0:01:01]} 4. Bb5 {[%emt 0:00:45]} Nf6 {[%emt 0:03:38]} 5. e5 {[%emt 0:02:28]} Nd7 {[%emt 0:00:06]} 6. c3 {[%emt 0:03:55]} Ncb8 {[%emt 0:03:05]} 7. Ne2 {[%emt 0:04:07]} c6 {[%emt 0:01:05]} 8. Bd3 {[%emt 0:01:19]} c5 {[%emt 0:00:30]} 9. O-O {[%emt 0:04:10]} a6 {[%emt 0:00:30]} 10. f4 {[%emt 0:08:33]} Nc6 {[%emt 0:00:06]} 11. Nf3 {[%emt 0:04:04]} g6 {[%emt 0:01:24]} 12. Qe1 {[%emt 0:17:22]} Bg7 {[%emt 0:04:50]} 13. Ng5 {[%emt 0:14:10]} Ne7 {[%emt 0:17:46]} 14. g4 {[%emt 0:04:12]} Nf8 {[%emt 0:00:55]} 15. f5 {[%emt 0:11:04]} h6 {[%emt 0:00:19]} 16. Nxf7 {[%emt 0:11:07]} Bxe5 {[%emt 0:02:13]} 17. h4 {[%emt 0:00:00]} 1-0

[Event "57th Biel Festival ATO 2024"]
[Site "Biel"]
[Date "2024.07.22"]
[Round "6.10"]
[White "Haas, Anthony"]
[Black "Ribera Caro, Joan"]
[Result "1/2-1/2"]
[ECO "E04"]
[WhiteElo "1824"]
[BlackElo "1920"]
[Annotator "ChessBase"]
[PlyCount "101"]
[EventDate "2024.07.03"]
[EventType "swiss"]
[EventCountry "SUI"]
[SourceTitle "playchess.com"]
[Source "ChessBase"]
[SourceQuality "1"]
[TimeControl "40/5400+30:1800+30"]

1. d4 {[%emt 0:00:03]} Nf6 {[%emt 0:00:15]} 2. c4 {[%emt 0:00:04]} e6 {[%emt 0:00:19]} 3. g3 {[%emt 0:00:02]} d5 {[%emt 0:00:24]} 4. Bg2 {[%emt 0:00:07]} Bb4+ {[%emt 0:00:30]} 5. Nd2 {[%emt 0:00:31]} O-O {[%emt 0:00:24]} 6. Ngf3 {[%emt 0:00:32]} dxc4 {[%emt 0:00:24]} 7. O-O {[%emt 0:03:40]} b5 {[%emt 0:00:53]} 8. a4 {[%emt 0:08:57]} c6 {[%emt 0:00:26]} 9. b3 {[%emt 0:08:53]} cxb3 {[%emt 0:11:21]} 10. Qxb3 {[%emt 0:00:57]} a5 {[%emt 0:02:44]} 11. Rd1 {[%emt 0:07:21]} Nd5 {[%emt 0:08:04]} 12. Bb2 {[%emt 0:03:51]} Qe7 {[%emt 0:05:30]} 13. Ne5 {[%emt 0:07:24]} Rd8 {[%emt 0:04:30]} 14. Rac1 {[%emt 0:13:39]} Bb7 {[%emt 0:02:57]} 15. Nb1 {[%emt 0:09:18]} Nb6 {[%emt 0:14:09]} 16. axb5 {[%emt 0:11:00]} cxb5 {[%emt 0:01:02]} 17. Bxb7 {[%emt 0:01:05]} Qxb7 {[%emt 0:00:14]} 18. Ba3 {[%emt 0:03:55]} Bxa3 {[%emt 0:05:41]} 19. Nxa3 {[%emt 0:00:16]} b4 {[%emt 0:01:45]} 20. Nb5 {[%emt 0:02:19]} Nd5 {[%emt 0:17:12]} 21. Qc4 {[%emt 0:07:52]} h6 {[%emt 0:04:50]} 22. e4 {[%emt 0:00:55]} Nf6 {[%emt 0:03:45]} 23. f3 {[%emt 0:01:33]} Qe7 {[%emt 0:04:54]} 24. Qe2 {[%emt 0:02:11]} Nfd7 {[%emt 0:03:28]} 25. Rc7 {[%emt 0:00:30]} f6 {[%emt 0:01:01]} 26. Nxd7 {[%emt 0:02:32]} Nxd7 {[%emt 0:01:36]} 27. Rdc1 {[%emt 0:00:23]} Rdb8 {[%emt 0:02:49]} 28. Na7 {[%emt 0:01:27]} Qd6 {[%emt 0:01:02]} 29. Nb5 {[%emt 0:00:35]} Qe7 {[%emt 0:01:24]} 30. Na7 {[%emt 0:00:07]} Qe8 {[%emt 0:01:06]} 31. Nc6 {[%emt 0:00:40]} Rb6 {[%emt 0:00:26]} 32. Nxa5 {[%emt 0:00:15]} b3 {[%emt 0:00:41]} 33. Qb2 {[%emt 0:01:52]} Kh7 {[%emt 0:00:08]} 34. Nxb3 {[%emt 0:00:14]} Rab8 {[%emt 0:00:34]} 35. R7c3 {[%emt 0:00:06]} Qe7 {[%emt 0:00:25]} 36. Qc2 {[%emt 0:00:24]} Qb4 {[%emt 0:00:31]} 37. Qd3 {[%emt 0:01:10]} Qa4 {[%emt 0:00:58]} 38. Nc5 {[%emt 0:00:39]} Nxc5 {[%emt 0:00:16]} 39. Rxc5 {[%emt 0:00:10]} Rb4 {[%emt 0:00:31]} 40. R5c4 {[%emt 0:01:21]} Rxc4 {[%emt 0:00:24]} 41. Qxc4 {[%emt 0:30:07]} Qxc4 {[%emt 0:04:55]} 42. Rxc4 {[%emt 0:00:00]} Rb1+ {[%emt 0:00:04]} 43. Kf2 {[%emt 0:00:00]} Rb2+ {[%emt 0:00:08]} 44. Ke3 {[%emt 0:00:00]} Rb3+ {[%emt 0:02:18]} 45. Ke2 {[%emt 0:00:00]} Kg6 {[%emt 0:00:51]} 46. Rc6 {[%emt 0:00:00]} Kf7 {[%emt 0:02:51]} 47. Rc7+ {[%emt 0:00:00]} Kf8 {[%emt 0:02:05]} 48. Rc8+ {[%emt 0:00:00]} Ke7 {[%emt 0:04:03]} 49. Rc7+ {[%emt 0:00:00]} Kf8 {[%emt 0:00:00]} 50. Rc8+ {[%emt 0:00:00]} Ke7 {[%emt 0:00:00]} 51. Rc7+ {[%emt 0:00:00]} 1/2-1/2

[Event "57th Biel Festival ATO 2024"]
[Site "Biel"]
[Date "2024.07.22"]
[Round "6.11"]
[White "Kuenzli, Simon"]
[Black "Schaer, Bryan"]
[Result "1-0"]
[ECO "C02"]
[WhiteElo "1919"]
[BlackElo "1803"]
[Annotator "ChessBase"]
[PlyCount "65"]
[EventDate "2024.07.03"]
[EventType "swiss"]
[EventCountry "SUI"]
[SourceTitle "playchess.com"]
[Source "ChessBase"]
[SourceQuality "1"]
[TimeControl "40/5400+30:1800+30"]

1. e4 {[%emt 0:00:36]} e6 {[%emt 0:07:35]} 2. d4 {[%emt 0:00:19]} d5 {[%emt 0:00:09]} 3. e5 {[%emt 0:00:08]} c5 {[%emt 0:00:09]} 4. c3 {[%emt 0:00:05]} Nc6 {[%emt 0:00:07]} 5. Nf3 {[%emt 0:00:06]} Bd7 {[%emt 0:00:12]} 6. Be2 {[%emt 0:00:22]} Nge7 {[%emt 0:00:16]} 7. Na3 {[%emt 0:00:16]} cxd4 {[%emt 0:00:13]} 8. cxd4 {[%emt 0:00:07]} Nf5 {[%emt 0:00:09]} 9. Nc2 {[%emt 0:00:09]} Qb6 {[%emt 0:00:36]} 10. O-O {[%emt 0:01:13]} Na5 {[%emt 0:01:01]} 11. Ne3 {[%emt 0:03:41]} Nxe3 {[%emt 0:05:54]} 12. fxe3 {[%emt 0:00:29]} Bb5 {[%emt 0:00:08]} 13. Ng5 {[%emt 0:11:52]} Bxe2 {[%emt 0:06:15]} 14. Qxe2 {[%emt 0:01:05]} Be7 {[%emt 0:08:55]} 15. Nxf7 {[%emt 0:05:20]} O-O {[%emt 0:09:16]} 16. Nd6 {[%emt 0:03:51]} Rxf1+ {[%emt 0:03:04]} 17. Qxf1 {[%emt 0:00:31]} Bxd6 {[%emt 0:02:09]} 18. exd6 {[%emt 0:00:17]} Nc4 {[%emt 0:00:51]} 19. d7 {[%emt 0:02:45]} Nd6 {[%emt 0:12:19]} 20. b3 {[%emt 0:02:11]} Qa5 {[%emt 0:02:45]} 21. a4 {[%emt 0:17:10]} Rf8 {[%emt 0:06:36]} 22. Qd1 {[%emt 0:08:43]} Rf7 {[%emt 0:08:41]} 23. Ba3 {[%emt 0:01:49]} Ne4 {[%emt 0:03:31]} 24. Qg4 {[%emt 0:02:20]} Qb6 {[%emt 0:09:12]} 25. Qxe6 {[%emt 0:06:14]} h6 {[%emt 0:08:51]} 26. Qxb6 {[%emt 0:00:31]} axb6 {[%emt 0:00:15]} 27. d8=Q+ {[%emt 0:00:14]} Kh7 {[%emt 0:00:15]} 28. Qxd5 {[%emt 0:00:18]} Ng5 {[%emt 0:01:58]} 29. h4 {[%emt 0:00:29]} Nh3+ {[%emt 0:01:00]} 30. gxh3 {[%emt 0:00:17]} Rf6 {[%emt 0:00:07]} 31. Qe4+ {[%emt 0:00:29]} Rg6+ {[%emt 0:00:12]} 32. Kh2 {[%emt 0:00:14]} h5 {[%emt 0:00:04]} 33. Rg1 {[%emt 0:00:08]} 1-0

[Event "57th Biel Festival ATO 2024"]
[Site "Biel"]
[Date "2024.07.22"]
[Round "6.12"]
[White "Dreke, Frank"]
[Black "Jordan, Christina"]
[Result "0-1"]
[ECO "B55"]
[WhiteElo "1915"]
[BlackElo "1749"]
[Annotator "ChessBase"]
[PlyCount "68"]
[EventDate "2024.07.03"]
[EventType "swiss"]
[EventCountry "SUI"]
[SourceTitle "playchess.com"]
[Source "ChessBase"]
[SourceQuality "1"]
[TimeControl "40/5400+30:1800+30"]

1. e4 {[%emt 0:01:11]} c5 {[%emt 0:00:11]} 2. Nf3 {[%emt 0:00:06]} d6 {[%emt 0:00:04]} 3. d4 {[%emt 0:00:04]} cxd4 {[%emt 0:00:06]} 4. Nxd4 {[%emt 0:00:01]} Nf6 {[%emt 0:00:13]} 5. f3 {[%emt 0:00:01]} a6 {[%emt 0:01:43]} 6. c4 {[%emt 0:00:18]} e5 {[%emt 0:02:00]} 7. Nc2 {[%emt 0:01:58]} Be6 {[%emt 0:02:16]} 8. Nc3 {[%emt 0:05:39]} Nbd7 {[%emt 0:03:40]} 9. Bd3 {[%emt 0:09:36]} Be7 {[%emt 0:06:22]} 10. O-O {[%emt 0:00:11]} O-O {[%emt 0:01:20]} 11. Be3 {[%emt 0:14:33]} Rc8 {[%emt 0:04:35]} 12. Nd5 {[%emt 0:02:39]} Bxd5 {[%emt 0:03:39]} 13. cxd5 {[%emt 0:00:40]} Nc5 {[%emt 0:02:35]} 14. Be2 {[%emt 0:03:36]} Nfd7 {[%emt 0:02:18]} 15. Qd2 {[%emt 0:12:45]} f5 {[%emt 0:09:08]} 16. exf5 {[%emt 0:05:47]} Rxf5 {[%emt 0:01:29]} 17. b4 {[%emt 0:03:29]} Na4 {[%emt 0:02:52]} 18. Bd3 {[%emt 0:00:55]} Rf8 {[%emt 0:01:23]} 19. Rac1 {[%emt 0:07:00]} Nb2 {[%emt 0:08:36]} 20. Na1 {[%emt 0:01:50]} Nxd3 {[%emt 0:05:02]} 21. Rxc8 {[%emt 0:00:15]} Qxc8 {[%emt 0:00:06]} 22. Qxd3 {[%emt 0:00:04]} Nf6 {[%emt 0:01:54]} 23. Bg5 {[%emt 0:05:44]} Qd7 {[%emt 0:03:57]} 24. Rc1 {[%emt 0:04:06]} Rc8 {[%emt 0:01:09]} 25. Rc4 {[%emt 0:06:21]} h6 {[%emt 0:09:44]} 26. Be3 {[%emt 0:00:43]} b5 {[%emt 0:02:22]} 27. Rh4 {[%emt 0:08:39]} e4 {[%emt 0:06:32]} 28. fxe4 {[%emt 0:01:16]} Ng4 {[%emt 0:00:09]} 29. Rh5 {[%emt 0:01:37]} Nxe3 {[%emt 0:00:22]} 30. Qxe3 {[%emt 0:00:10]} Bg5 {[%emt 0:00:14]} 31. Rxg5 {[%emt 0:00:25]} hxg5 {[%emt 0:00:04]} 32. Qxg5 {[%emt 0:00:03]} Qa7+ {[%emt 0:01:11]} 33. Kf1 {[%emt 0:01:07]} Rf8+ {[%emt 0:00:32]} 34. Ke2 {[%emt 0:00:31]} Qf2+ {[%emt 0:00:16]} 0-1